bitfinex-derivatives/quotes_SOLF0:USTF0_20241015
["timestamp","ask_amount","ask_price","bid_price","bid_amount"]
[1728992033625,3.2455,154.08,154.04,1.4017]
[1728992034526,3.2455,154.08,154.05,3.246]
[1728992034727,1.00212339,154.07,154.05,3.246]
[1728992035329,5.24,154.11,154.04,1.4017]
[1728992035526,3.2459,154.07,154.04,4.6479]
[1728992036729,3.2456,154.08,154.05,3.2461]
[1728992036927,1.00207568,154.07,154.05,3.2461]
[1728992037322,1.00207568,154.07,154.04,1.4017]
[1728992037533,3.2454,154.09,154.06,3.2459]
[1728992037829,1.00216733,154.08,154.06,3.2459]
[1728992038421,3.2454,154.09,154.06,3.2459]
[1728992038821,1.00218887,154.08,154.06,3.2459]
[1728992039022,3.2454,154.09,154.06,3.2459]
[1728992040227,3.2458,154.07,154.04,4.6479]
[1728992040428,6.6105,154.12,153.99,1.4031]
[1728992040429,30.18,154.08,153.99,1.4031]
[1728992040634,30.18,154.08,153.99,2.7527]
[1728992040925,24.94,154.06,153.91,24.94]
[1728992041127,24.94,154.03,153.93,1.3496]
[1728992041330,3.2476,153.99,153.95,3.2481]
[1728992041530,3.2476,153.99,153.93,1.3496]
[1728992041928,3.2476,153.99,153.96,3.2479]
[1728992042630,5.24,154.05,153.96,30.18]
[1728992042830,5.24,154.05,153.97,1.3896]
[1728992042831,1.00176799,154.04,153.97,1.3896]
[1728992043131,3.2466,154.03,154.0,3.2471]
[1728992043331,5.24,154.05,153.97,1.3896]
[1728992043533,27.6222,154.11,153.99,24.94]
[1728992043829,6.24193012,154.1,154.0,7.9392]
[1728992044035,1.00193012,154.09,154.0,7.9392]
[1728992044329,3.2462,154.07,154.03,3.2467]
[1728992044525,3.2462,154.07,154.0,7.9392]
[1728992045433,5.24,154.1,154.0,7.9392]
[1728992045625,3.2466,154.05,154.0,7.9392]
[1728992045829,3.2466,154.05,154.01,3.2471]
[1728992046027,3.2466,154.05,154.0,7.9392]
[1728992046731,5.24,154.1,154.01,3.2473]
[1728992046933,25.94196562,154.09,154.0,1.3739]
[1728992047126,24.94,154.06,153.94,27.576]
[1728992047327,6.24180557,154.05,153.95,5.24]
[1728992047530,1.00180557,154.04,153.94,32.816]
[1728992047723,27.32610557,154.04,153.94,6.5228]
[1728992047923,3.2481,153.98,153.94,6.5228]
[1728992048125,3.2481,153.98,153.94,1.2828]
[1728992048527,3.2481,153.98,153.95,3.2484]
[1728992048833,3.2481,153.98,153.9,1.3532]
[1728992048834,3.2487,153.95,153.9,1.3532]
[1728992049224,5.24,154.0,153.9,1.3532]
[1728992049528,3.2483,153.97,153.9,1.3532]
[1728992049938,3.2484,153.96,153.92,3.249]
[1728992051224,5.24,154.0,153.92,3.249]
[1728992051430,1.00138483,153.99,153.9,1.3532]
[1728992051630,1.00138483,153.99,153.93,3.249]
[1728992052334,3.2485,153.96,153.93,3.249]
[1728992053432,24.94,153.99,153.9,4.6027]
[1728992053739,24.94,153.96,153.87,5.24]
[1728992053933,6.24133107,153.95,153.85,5.24]
[1728992054135,5.24,153.95,153.88,3.2499]
[1728992054839,3.2494,153.92,153.89,3.2497]
[1728992055638,3.2495,153.91,153.88,3.2499]
[1728992055837,5.24,153.95,153.88,3.2499]
[1728992056048,1.00131877,153.94,153.88,3.2499]
[1728992056347,3.2493,153.92,153.88,3.2499]
[1728992056641,1.00131877,153.94,153.9,3.2495]
[1728992056642,3.249,153.93,153.9,3.2495]
[1728992057644,3.2493,153.92,153.89,3.2498]
[1728992058036,3.2495,153.91,153.88,3.2499]
[1728992058236,24.94,153.94,153.84,1.3335]
[1728992058542,1.0018457,153.93,153.84,1.3335]
[1728992058731,24.94,153.92,153.79,95.1]
[1728992058935,6.5484,153.91,153.8,6.6221]
[1728992059138,6.5484,153.91,153.8,7.9616]
[1728992059339,24.94,153.96,153.84,24.94]
[1728992059540,6.24183548,153.95,153.84,24.94]
[1728992059735,1.00183548,153.94,153.84,30.18]
[1728992059937,3.2494,153.92,153.88,3.2499]
[1728992060242,3.2494,153.92,153.84,30.18]
[1728992060443,3.2494,153.91,153.88,3.2499]
[1728992060840,5.24,153.95,153.84,30.18]
[1728992061145,3.2497,153.9,153.87,3.2501]
[1728992061541,5.24,153.91,153.81,24.94]
[1728992061738,3.2502,153.88,153.85,3.2505]
[1728992062051,15.61,153.89,153.8,18.3316]
[1728992062346,3.2506,153.86,153.8,18.3316]
[1728992062549,3.2506,153.86,153.8,16.9921]
[1728992062841,3.2508,153.85,153.8,16.9921]
[1728992063042,5.24,153.87,153.8,16.9921]
[1728992063842,5.24,153.87,153.8,1.3821]
[1728992064039,5.24,153.89,153.81,24.98]
[1728992064245,5.24,153.89,153.81,26.3471]
[1728992064440,5.24,153.89,153.82,5.24]
[1728992064945,5.24,153.89,153.88,3.25]
[1728992065245,5.24,153.89,153.82,5.24]
[1728992065546,5.24,153.89,153.87,3.2502]
[1728992066049,8.49,153.89,153.85,3.2505]
[1728992066239,5.24,153.89,153.85,3.2505]
[1728992067048,5.24,153.89,153.8,1.3821]
[1728992067434,8.49,153.89,153.86,3.2503]
[1728992067644,3.25,153.89,153.86,3.2503]
[1728992067943,8.49,153.89,153.86,3.2503]
[1728992068337,24.98,153.94,153.81,24.98]
[1728992068544,6.24124903,153.93,153.81,24.98]
[1728992068738,5.24,153.93,153.81,24.98]
[1728992068944,3.2498,153.9,153.87,3.2502]
[1728992069442,3.2498,153.9,153.83,30.24]
[1728992069945,3.2499,153.89,153.83,30.24]
[1728992070147,5.26,153.91,153.87,3.2502]
[1728992070540,3.2497,153.9,153.87,3.2502]
[1728992071637,5.26,153.91,153.83,5.26]
[1728992071839,3.2498,153.89,153.86,3.2503]
[1728992073746,3.2498,153.89,153.87,3.2502]
[1728992074548,3.2497,153.9,153.87,3.2502]
[1728992075152,3.2503,153.87,153.81,24.98]
[1728992075345,24.98,153.88,153.8,1.3821]
[1728992075647,8.5215783,153.87,153.8,1.3821]
[1728992075947,8.5215783,153.87,153.72,82.99138886]
[1728992075948,3.2513,153.82,153.76,5.26]
[1728992076248,3.2513,153.82,153.79,3.2518]
[1728992076440,3.2512,153.83,153.76,7.8516]
[1728992076846,5.26,153.87,153.77,24.98]
[1728992077549,3.2509,153.84,153.81,3.2514]
[1728992077745,5.26,153.87,153.76,2.5916]
[1728992078141,3.2512,153.83,153.8,3.2516]
[1728992078852,5.26,153.87,153.78,24.98]
[1728992078853,3.2506,153.86,153.78,24.98]
[1728992079147,5.26,153.87,153.78,24.98]
[1728992079346,3.2507,153.85,153.82,3.2512]
[1728992080145,5.26,153.87,153.76,2.6631]
[1728992080349,5.26,153.87,153.8,3.2516]
[1728992080847,3.2512,153.83,153.8,3.2516]
[1728992081146,5.26,153.87,153.76,7.9231]
[1728992081347,3.2508,153.85,153.77,24.98]
[1728992081550,5.26,153.87,153.77,24.98]
[1728992081950,3.2507,153.85,153.77,24.98]
[1728992082361,5.26,153.89,153.86,3.2504]
[1728992082567,5.26,153.89,153.8,30.24]
[1728992082853,5.26,153.89,153.85,3.2506]
[1728992083161,3.2501,153.88,153.85,3.2506]
[1728992085049,15.61,153.92,153.82,18.2153]
[1728992085253,8.5098,153.9,153.84,15.61]
[1728992085654,3.2495,153.91,153.88,3.25]
[1728992085857,8.5095,153.91,153.88,3.25]
[1728992086550,3.2496,153.9,153.88,3.25]
[1728992086757,3.2496,153.9,153.87,3.2502]
[1728992086957,15.61,153.9,153.82,7.8653]
[1728992087159,3.2504,153.87,153.82,7.8653]
[1728992087362,3.2504,153.87,153.84,3.2507]
[1728992087657,3.2502,153.88,153.82,7.8653]
[1728992088062,3.2502,153.88,153.85,3.2507]
[1728992090460,3.2502,153.88,153.82,7.8653]
[1728992091164,15.61,153.9,153.82,7.8653]
[1728992091368,3.2503,153.87,153.84,3.2508]
[1728992093863,15.61,153.9,153.82,7.8653]
[1728992094063,5.26,153.91,153.86,3.2504]
[1728992094461,3.25,153.89,153.86,3.2504]
[1728992095370,5.26,153.91,153.86,3.2504]
[1728992095564,3.2501,153.88,153.82,23.4753]
[1728992095763,3.2501,153.88,153.85,3.2505]
[1728992099965,5.24,153.9,153.82,23.4753]
[1728992100170,15.61,153.94,153.84,15.61]
[1728992100370,6.24124364,153.93,153.84,15.61]
[1728992100577,3.2495,153.91,153.88,3.2499]
[1728992101865,5.24,153.94,153.87,15.61]
[1728992102068,3.29671954,153.97,153.89,15.61]
[1728992102271,15.61,153.98,153.89,15.61]
[1728992102272,5.24,153.96,153.89,15.61]
[1728992102471,8.51535312,153.96,153.89,17.0174]
[1728992102673,8.51535312,153.96,153.91,15.61]
[1728992103076,24.12535312,153.96,153.89,17.0174]
[1728992103272,20.85,153.96,153.89,17.0174]
[1728992103670,24.0985,153.96,153.93,3.2489]
[1728992103867,5.24,153.96,153.89,17.0174]
[1728992104365,5.24,153.96,153.91,3.2494]
[1728992104565,5.24,153.96,153.89,17.0174]
[1728992105077,3.2487,153.95,153.91,3.2492]
[1728992105372,15.61,153.94,153.88,2.7736]
[1728992105564,3.2498,153.89,153.88,1.4176]
[1728992105767,15.61,153.89,153.83,3.19551677]
[1728992105968,15.61,153.89,153.82,1.3025]
[1728992106168,3.2502,153.88,153.84,3.2508]
[1728992106865,3.2502,153.88,153.83,3.2509]
[1728992107063,3.2502,153.88,153.82,1.3025]
[1728992107276,3.2503,153.87,153.82,1.3025]
[1728992107574,15.61,153.87,153.82,1.3025]
[1728992108073,3.2507,153.85,153.82,4.5537]
[1728992108480,3.2507,153.85,153.82,1.3025]
[1728992108676,3.2509,153.84,153.77,5.24]
[1728992108980,3.2509,153.84,153.76,15.61]
[1728992109282,15.61,153.85,153.77,5.24]
[1728992109484,5.24,153.84,153.76,15.61]
[1728992109866,5.24,153.84,153.75,9.3906]
[1728992110068,3.2514,153.82,153.78,3.2521]
[1728992110472,15.61,153.81,153.75,4.1506]
[1728992110779,15.61,153.79,153.75,1.3568]
[1728992110981,20.85,153.79,153.75,1.3568]
[1728992111274,5.24,153.79,153.75,1.3568]
[1728992111876,8.492,153.79,153.75,4.6095]
[1728992113273,8.492,153.79,153.75,1.3568]
[1728992113274,3.2522,153.78,153.75,1.3568]
[1728992113484,3.2522,153.78,153.71,5.24]
[1728992113670,5.24,153.79,153.72,1.3835]
[1728992113878,3.2527,153.76,153.72,4.6368]
[1728992114576,25.01,153.77,153.72,3.2533]
[1728992114877,3.2531,153.74,153.71,3.2536]
[1728992115574,3.2529,153.75,153.71,3.2536]
[1728992115776,3.2529,153.75,153.69,5.24]
[1728992115777,8.46073685,153.79,153.69,5.24]
[1728992115970,1.00066292,153.78,153.69,5.24]
[1728992116180,5.24,153.79,153.76,3.2524]
[1728992117176,8.492,153.79,153.76,3.2524]
[1728992118079,30.25,153.82,153.73,3.2531]
[1728992118282,30.25,153.82,153.74,2.7483]
[1728992118681,3.2516,153.81,153.77,3.2522]
[1728992118976,30.25,153.82,153.75,1.3988]
[1728992119481,33.5015,153.82,153.78,3.252]
[1728992120576,30.25,153.82,153.78,3.252]
[1728992120778,3.2516,153.81,153.78,3.252]
[1728992121179,25.01,153.8,153.75,4.6516]
[1728992121483,28.2618,153.8,153.75,1.3988]
[1728992122082,28.2618,153.8,153.76,3.2524]
[1728992122283,25.01,153.8,153.68,25.01]
[1728992122473,25.01,153.8,153.72,3.2533]
[1728992122474,25.01,153.77,153.72,3.2533]
[1728992122677,30.25,153.77,153.72,3.2533]
[1728992122882,30.25,153.77,153.69,2.7159]
[1728992123381,3.2527,153.76,153.69,2.7159]
[1728992123578,3.2527,153.76,153.72,3.2533]
[1728992123982,3.2528,153.75,153.72,3.2533]
[1728992124488,30.25,153.77,153.74,3.2529]
[1728992124785,5.24,153.77,153.69,2.7159]
[1728992124987,5.24,153.77,153.75,3.2527]
[1728992125877,25.01,153.8,153.76,3.2524]
[1728992126087,5.24,153.79,153.76,3.2524]
[1728992127380,8.492,153.79,153.76,3.2524]
[1728992129078,5.24,153.79,153.69,2.7159]
[1728992129581,5.24,153.79,153.69,7.9559]
[1728992129776,5.24,153.79,153.72,3.2534]
[1728992129980,25.01,153.75,153.72,3.2534]
[1728992130186,30.25,153.75,153.72,3.2534]
[1728992130380,30.25,153.75,153.69,7.9559]
[1728992130578,5.24,153.75,153.73,3.2532]
[1728992131185,5.24,153.75,153.73,3.2531]
[1728992131485,5.24,153.77,153.69,7.9559]
[1728992131883,5.24,153.77,153.75,3.2527]
[1728992134278,5.24,153.77,153.76,3.2526]
[1728992135583,25.01,153.82,153.69,7.9559]
[1728992135788,20.87,153.81,153.72,15.63]
[1728992136088,20.87,153.81,153.73,6.6149]
[1728992136392,15.63,153.79,153.73,6.6149]
[1728992137490,15.63,153.79,153.77,3.2522]
[1728992137984,3.2523,153.78,153.75,3.2527]
[1728992138184,20.87,153.77,153.7,5.24]
[1728992138381,20.87,153.77,153.69,2.7159]
[1728992138579,5.24,153.77,153.69,18.3459]
[1728992138785,15.63,153.79,153.7,17.0049]
[1728992138984,5.24,153.79,153.71,5.24]
[1728992139285,5.24,153.79,153.78,3.2522]
[1728992139688,18.8817,153.81,153.78,3.2522]
[1728992139884,24.1217,153.81,153.78,3.2522]
[1728992140192,20.87,153.81,153.79,3.2518]
[1728992140393,8.4914,153.82,153.72,15.63]
[1728992140889,8.4914,153.82,153.75,3.2528]
[1728992141089,8.4914,153.82,153.72,15.63]
[1728992141791,3.2515,153.81,153.78,3.252]
[1728992142494,15.63,153.79,153.71,5.24]
[1728992142692,15.63,153.77,153.71,5.24]
[1728992142901,15.63,153.75,153.7,1.3749]
[1728992143492,18.8829,153.75,153.72,3.2532]
[1728992143691,5.24,153.78,153.69,2.7159]
[1728992143692,15.63,153.73,153.69,2.7159]
[1728992143892,15.63,153.73,153.69,1.3635]
[1728992144284,5.24,153.74,153.69,1.3635]
[1728992145291,15.63,153.73,153.69,1.3635]
[1728992146494,15.63,153.73,153.71,3.2536]
[1728992147086,8.4931,153.74,153.71,3.2536]
[1728992149691,15.63,153.73,153.67,3.2543]
[1728992149898,15.63,153.7,153.65,1.3543]
[1728992150394,15.63,153.7,153.68,3.2541]
[1728992150792,15.63,153.7,153.69,3.2541]
[1728992150991,18.8834,153.73,153.65,1.3543]
[1728992151391,18.8834,153.73,153.7,3.2538]
[1728992152396,15.63,153.73,153.71,3.2535]
[1728992152790,15.63,153.73,153.65,1.3543]
[1728992152995,18.8834,153.73,153.65,1.3543]
[1728992153589,15.63,153.73,153.65,1.3543]
[1728992154900,3.2535,153.72,153.69,3.254]
[1728992155099,15.63,153.71,153.69,3.254]
[1728992155289,15.63,153.71,153.65,1.3543]
[1728992155495,15.63,153.71,153.69,3.254]
[1728992155691,15.63,153.71,153.65,1.3543]
[1728992155890,15.63,153.71,153.67,3.2543]
[1728992156094,15.63,153.69,153.67,3.2543]
[1728992156296,15.63,153.69,153.64,1.3995]
[1728992156800,15.63,153.69,153.67,3.2544]
[1728992157802,3.2539,153.7,153.67,3.2544]
[1728992160097,28.19781191,153.72,153.64,1.3995]
[1728992160302,3.254,153.7,153.67,3.2544]
[1728992160698,25.01,153.72,153.63,1.2887]
[1728992160902,3.2537,153.71,153.68,3.2541]
[1728992161307,25.01,153.72,153.63,1.2887]
[1728992161702,28.2636,153.72,153.63,1.2887]
[1728992161902,3.2536,153.72,153.63,1.2887]
[1728992162503,3.2536,153.72,153.69,3.254]
[1728992163105,3.2537,153.71,153.68,3.2541]
[1728992163802,3.2537,153.71,153.69,3.254]
[1728992164207,3.2537,153.71,153.63,1.2887]
[1728992164606,3.20539355,153.71,153.63,1.2887]
[1728992164805,3.2543,153.69,153.63,1.2887]
[1728992165018,25.01,153.72,153.63,1.2887]
[1728992165201,3.2538,153.71,153.67,3.2543]
[1728992165400,30.25,153.74,153.63,1.2887]
[1728992166005,3.2538,153.71,153.63,1.2887]
[1728992166202,25.01,153.69,153.63,1.2887]
[1728992167406,3.2546,153.67,153.64,3.255]
[1728992167903,3.2544,153.68,153.63,1.2887]
[1728992168310,5.24,153.7,153.63,1.2887]
[1728992168810,3.2542,153.69,153.66,3.2546]
[1728992169009,25.01,153.74,153.63,1.2887]
[1728992169218,6.24101304,153.73,153.64,5.24]
[1728992169505,5.24,153.74,153.64,6.6267]
[1728992169697,1.3629,153.77,153.66,25.01]
[1728992169902,5.24,153.78,153.67,3.29405993]
[1728992170204,3.2526,153.76,153.7,3.2537]
[1728992170404,3.2526,153.76,153.68,5.24]
[1728992171005,3.2531,153.74,153.68,5.24]
[1728992171209,25.01,153.74,153.67,1.3527]
[1728992171405,30.25,153.74,153.67,1.3527]
[1728992171605,25.01,153.72,153.63,6.5287]
[1728992171912,25.01,153.7,153.63,6.5287]
[1728992172106,30.25,153.7,153.63,6.5287]
[1728992172306,3.2541,153.69,153.65,3.2548]
[1728992172907,30.25,153.7,153.67,3.2544]
[1728992172908,5.24,153.7,153.67,3.2544]
[1728992174511,8.4939,153.7,153.67,3.2544]
[1728992174708,30.25,153.7,153.63,6.5287]
[1728992175310,3.2541,153.69,153.65,3.2547]
[1728992176814,30.25,153.7,153.63,6.5287]
[1728992177010,8.494,153.7,153.67,3.2544]
[1728992178217,5.24,153.7,153.63,6.5287]
[1728992178917,25.01,153.74,153.63,6.5287]
[1728992179115,1.0010338,153.73,153.64,25.01]
[1728992179316,95.31,153.79,153.67,25.01]
[1728992179518,25.01,153.79,153.68,5.24]
[1728992179817,6.24089945,153.78,153.68,6.5251]
[1728992180012,3.2527,153.76,153.72,3.2533]
[1728992180513,3.2525,153.77,153.68,6.5251]
[1728992181011,5.24,153.78,153.68,1.2851]
[1728992181207,3.253,153.74,153.71,3.2535]
[1728992182315,3.253,153.74,153.71,3.2536]
[1728992182520,25.01,153.76,153.68,5.24]
[1728992182719,1.00066368,153.75,153.64,7.7954]
[1728992182917,25.01,153.73,153.64,6.5251]
[1728992183316,3.2541,153.69,153.66,3.2547]
[1728992183610,1.00049528,153.72,153.61,5.24]
[1728992183611,25.01,153.68,153.61,5.24]
[1728992184116,25.01,153.68,153.58,4.0104]
[1728992184117,25.01,153.65,153.58,2.6698]
[1728992184318,25.01,153.65,153.58,1.3133]
[1728992184319,25.01,153.63,153.58,1.3133]
[1728992184719,3.2556,153.62,153.58,4.5696]
[1728992185118,3.2556,153.62,153.58,1.3133]
[1728992185319,25.01,153.63,153.59,3.2562]
[1728992185520,28.2654,153.63,153.59,3.2562]
[1728992185719,25.01,153.63,153.52,1.3565]
[1728992185914,25.01,153.63,153.56,3.2568]
[1728992186215,25.01,153.63,153.53,6.5994]
[1728992186216,3.256,153.61,153.53,6.5994]
[1728992186420,3.256,153.61,153.57,3.2565]
[1728992186829,30.25,153.61,153.44,6.5187]
[1728992187019,30.25,153.61,153.54,3.2572]
[1728992187522,3.2563,153.59,153.55,3.257]
[1728992188521,3.2564,153.58,153.54,3.2572]
[1728992188726,30.25,153.61,153.51,6.5994]
[1728992189223,3.2562,153.59,153.54,3.2572]
[1728992189735,3.2562,153.59,153.51,6.5994]
[1728992190025,3.2562,153.59,153.55,3.257]
[1728992190421,30.25,153.61,153.55,3.257]
[1728992190725,3.2564,153.58,153.55,3.257]
[1728992191334,3.2567,153.57,153.53,3.2573]
[1728992192631,3.2562,153.59,153.51,1.3594]
[1728992192831,30.25,153.61,153.51,1.3594]
[1728992193029,6.23912347,153.6,153.51,1.3594]
[1728992193229,5.24,153.6,153.51,1.3594]
[1728992193433,25.01,153.61,153.51,1.3594]
[1728992193629,5.24,153.6,153.51,2.6437]
[1728992194529,5.24,153.6,153.58,3.2563]
[1728992194828,5.24,153.6,153.54,5.24]
[1728992195028,5.24,153.6,153.55,3.2569]
[1728992195223,5.24,153.6,153.51,7.8837]
[1728992195826,25.01,153.58,153.51,7.8837]
[1728992196027,25.01,153.58,153.51,6.5994]
[1728992196229,25.01,153.58,153.51,1.3594]
[1728992196428,3.2564,153.57,153.53,3.257]
[1728992197030,25.01,153.58,153.51,3.2574]
[1728992197632,5.24,153.6,153.49,3.258]
[1728992197633,25.01,153.56,153.49,3.258]
[1728992197827,25.01,153.53,153.41,25.01]
[1728992198038,3.2578,153.5,153.42,5.24]
[1728992198240,30.25,153.53,153.42,5.24]
[1728992198627,3.258,153.49,153.45,3.2588]
[1728992199137,30.25,153.53,153.45,3.2588]
[1728992199339,30.25,153.53,153.46,3.2586]
[1728992199538,25.01,153.51,153.42,5.24]
[1728992199837,3.2583,153.48,153.43,3.2591]
[1728992200037,3.2583,153.48,153.41,5.24]
[1728992200238,25.01,153.51,153.41,5.24]
[1728992200437,3.258,153.49,153.43,3.2592]
[1728992200640,3.258,153.49,153.41,5.24]
[1728992201139,3.258,153.49,153.44,3.2589]
[1728992201838,3.258,153.49,153.41,5.24]
[1728992201839,3.2582,153.48,153.41,5.24]
[1728992202136,5.24,153.49,153.41,5.24]
[1728992202331,3.2585,153.47,153.41,5.24]
[1728992202645,3.2585,153.47,153.44,3.259]
[1728992203234,3.2585,153.47,153.43,3.2592]
[1728992204136,5.24,153.49,153.4,9.2141]
[1728992204336,8.4981,153.49,153.45,3.2588]
[1728992205641,3.2584,153.47,153.44,3.259]
[1728992205834,5.24,153.49,153.4,9.2141]
[1728992206340,3.2584,153.47,153.44,3.2589]
[1728992206543,5.24,153.49,153.4,2.6603]
[1728992206544,25.01,153.46,153.4,2.6603]
[1728992206737,3.2591,153.44,153.41,3.2595]
[1728992207042,25.01,153.46,153.41,3.2595]
[1728992207242,3.2589,153.45,153.42,3.2593]
[1728992207542,25.01,153.46,153.4,1.2935]
[1728992207836,3.2589,153.45,153.42,3.2594]
[1728992208543,25.01,153.43,153.27,6.5251]
[1728992208739,25.01,153.43,153.35,1.424]
[1728992209141,3.2601,153.39,153.36,3.2607]
[1728992209340,25.01,153.43,153.36,3.2607]
[1728992209643,3.2597,153.41,153.37,3.2604]
[1728992209938,3.2597,153.41,153.35,1.424]
[1728992210151,3.2598,153.41,153.37,3.2605]
[1728992210442,25.01,153.43,153.35,1.424]
[1728992210838,3.2598,153.41,153.37,3.2604]
[1728992211033,3.2598,153.41,153.35,1.424]
[1728992211239,25.01,153.43,153.37,3.2605]
[1728992211434,3.26,153.4,153.35,1.424]
[1728992211834,5.24,153.39,153.27,31.5351]
[1728992212044,5.24,153.39,153.31,1.2887]
[1728992212449,3.2607,153.37,153.33,3.2612]
[1728992214042,3.2609,153.36,153.32,3.2615]
[1728992214345,5.24,153.39,153.32,3.2615]
[1728992214346,25.01,153.38,153.32,3.2615]
[1728992215049,3.2608,153.36,153.33,3.2613]
[1728992215241,5.24,153.39,153.31,1.2887]
[1728992215549,3.2601,153.4,153.36,3.2606]
[1728992215737,5.24,153.39,153.31,6.5287]
[1728992216134,5.24,153.39,153.33,3.2613]
[1728992216338,5.24,153.39,153.31,6.5287]
[1728992216847,5.24,153.41,153.32,25.01]
[1728992217239,5.24,153.41,153.38,3.2602]
[1728992217437,5.24,153.41,153.32,25.01]
[1728992217838,3.2592,153.44,153.34,25.01]
[1728992218151,5.24,153.46,153.37,25.01]
[1728992218447,5.24,153.46,153.38,1.2864]
[1728992218640,8.4986,153.46,153.42,3.2593]
[1728992218840,5.24,153.48,153.39,31.6407]
[1728992219042,8.4983,153.48,153.44,3.2589]
[1728992219342,5.24,153.48,153.39,31.6407]
[1728992220037,3.2584,153.47,153.44,3.259]
[1728992220447,3.258,153.49,153.45,3.2588]
[1728992221243,3.258,153.49,153.39,31.6407]
[1728992221244,3.2584,153.47,153.39,31.6407]
[1728992221440,26.3847,153.51,153.39,31.6407]
[1728992221644,30.29,153.51,153.39,31.6407]
[1728992222037,3.2579,153.5,153.39,31.6407]
[1728992222240,30.29,153.51,153.39,26.4007]
[1728992222441,3.2584,153.48,153.43,3.2591]
[1728992222643,25.01,153.48,153.39,1.3907]
[1728992222843,25.01,153.48,153.39,6.6707]
[1728992223047,25.01,153.46,153.39,1.3907]
[1728992223250,30.29,153.46,153.39,1.3907]
[1728992223744,3.2597,153.42,153.38,3.2603]
[1728992223943,25.01,153.41,153.33,2.7621]
[1728992224139,3.2607,153.36,153.33,6.0233]
[1728992224342,25.01,153.38,153.33,2.7621]
[1728992224848,28.2704,153.38,153.34,3.2611]
[1728992225045,25.01,153.38,153.33,1.3569]
[1728992225446,25.01,153.38,153.32,3.2616]
[1728992225447,3.2609,153.36,153.32,3.2616]
[1728992225744,30.29,153.38,153.28,2.7326]
[1728992225945,25.01,153.36,153.28,2.7326]
[1728992226149,3.2611,153.35,153.31,3.2618]
[1728992226344,25.01,153.36,153.28,2.7326]
[1728992226652,3.2617,153.32,153.28,2.7326]
[1728992226843,5.28,153.34,153.28,1.3274]
[1728992227149,3.2618,153.31,153.28,1.3274]
[1728992227746,3.2619,153.31,153.26,3.2628]
[1728992227944,25.01,153.33,153.25,6.5956]
[1728992228145,25.01,153.36,153.25,6.5956]
[1728992228346,5.28,153.34,153.3,3.2619]
[1728992228549,5.28,153.36,153.25,6.5956]
[1728992228757,9.9305,153.37,153.33,3.2613]
[1728992228940,25.01,153.38,153.33,3.2613]
[1728992229147,5.28,153.38,153.29,5.28]
[1728992229347,8.5404,153.38,153.33,3.2612]
[1728992229648,8.5404,153.38,153.29,5.28]
[1728992229845,8.5404,153.38,153.33,3.2612]